[Event "Titled Tuesday Blitz August 08 Early 2023"]
[White "Shukhman, Anna"]
[Black "Hulka, Valentyn"]
[WhiteFideId "54180058"]
[BlackFideId "34107061"]
[WhiteElo "2539"]
[BlackElo "2725"]
[Result "1-0"]
[Round "8"]
[TimeControl "180+1"]
[Date "2023.08.08"]
[WhiteClock "0:01:05"]
[BlackClock "0:00:17"]
[Board "61"]

1. e4 {[%clk 0:03:00]}  c5 {[%clk 0:03:00]} 2. Nf3 {[%clk 0:02:59]}  Nc6 {[%clk 0:03:00]} 3. Bb5 {[%clk 0:02:59]}  g6 {[%clk 0:03:00]} 4. O-O {[%clk 0:02:58]}  Bg7 {[%clk 0:03:00]} 5. c3 {[%clk 0:02:58]}  e5 {[%clk 0:02:58]} 6. d4 {[%clk 0:02:58]}  cxd4 {[%clk 0:02:56]} 7. cxd4 {[%clk 0:02:58]}  exd4 {[%clk 0:02:57]} 8. Bf4 {[%clk 0:02:57]}  Nge7 {[%clk 0:02:57]} 9. Bd6 {[%clk 0:02:52]}  a6 {[%clk 0:02:56]} 10. Ba4 {[%clk 0:02:51]}  b5 {[%clk 0:02:55]} 11. Bb3 {[%clk 0:02:52]}  O-O {[%clk 0:02:48]} 12. a4 {[%clk 0:02:46]}  Bb7 {[%clk 0:02:46]} 13. Re1 {[%clk 0:02:44]}  h6 {[%clk 0:02:09]} 14. e5 {[%clk 0:02:42]}  Re8 {[%clk 0:01:57]} 15. Bxf7+ {[%clk 0:02:33]}  Kxf7 {[%clk 0:01:52]} 16. Qb3+ {[%clk 0:02:32]}  Nd5 {[%clk 0:01:26]} 17. Qxd5+ {[%clk 0:02:30]}  Re6 {[%clk 0:01:25]} 18. Nbd2 {[%clk 0:02:10]}  Qb6 {[%clk 0:01:14]} 19. Qa2 {[%clk 0:01:32]}  Kg8 {[%clk 0:01:03]} 20. Ne4 {[%clk 0:01:30]}  Kh7 {[%clk 0:00:46]} 21. a5 {[%clk 0:01:27]}  Qa7 {[%clk 0:00:40]} 22. Neg5+ {[%clk 0:01:15]}  hxg5 {[%clk 0:00:38]} 23. Nxg5+ {[%clk 0:01:15]}  Kh8 {[%clk 0:00:27]} 24. Nxe6 {[%clk 0:01:15]}  dxe6 {[%clk 0:00:27]} 25. Qxe6 {[%clk 0:01:15]}  Bc8 {[%clk 0:00:24]} 26. Qxg6 {[%clk 0:01:12]}  Qd7 {[%clk 0:00:20]} 27. Re4 {[%clk 0:01:09]}  Qe6 {[%clk 0:00:18]} 28. Rh4+ {[%clk 0:01:05]}  Kg8 {[%clk 0:00:18]} 29. Qh7+ {[%clk 0:01:05]}  Kf7 {[%clk 0:00:17]} 30. Rf4+ {[%clk 0:01:05]} 1-0


[Site "https://www.chess.com"]

[Event "Titled Tuesday Blitz August 08 Early 2023"]
[White "Mazurkiewicz, Michal"]
[Black "Jones, Gawain C B"]
[WhiteFideId "1124943"]
[BlackFideId "409561"]
[WhiteElo "2401"]
[BlackElo "2879"]
[Result "0-1"]
[Round "8"]
[TimeControl "180+1"]
[Date "2023.08.08"]
[WhiteClock "0:00:00"]
[BlackClock "0:00:29"]
[Board "63"]

1. e4 {[%clk 0:03:00]}  c6 {[%clk 0:02:57]} 2. d3 {[%clk 0:02:59]}  d5 {[%clk 0:02:57]} 3. Nd2 {[%clk 0:03:00]}  e5 {[%clk 0:02:57]} 4. Ngf3 {[%clk 0:03:00]}  dxe4 {[%clk 0:02:57]} 5. dxe4 {[%clk 0:03:00]}  Qc7 {[%clk 0:02:55]} 6. Bc4 {[%clk 0:02:56]}  Be7 {[%clk 0:02:54]} 7. a4 {[%clk 0:02:54]}  a5 {[%clk 0:02:54]} 8. c3 {[%clk 0:02:53]}  Na6 {[%clk 0:02:53]} 9. Qb3 {[%clk 0:02:49]}  Nh6 {[%clk 0:02:51]} 10. Nf1 {[%clk 0:02:46]}  Nc5 {[%clk 0:02:51]} 11. Qa2 {[%clk 0:02:45]}  Nxe4 {[%clk 0:02:40]} 12. Bxh6 {[%clk 0:02:41]}  gxh6 {[%clk 0:02:41]} 13. Bxf7+ {[%clk 0:02:41]}  Kf8 {[%clk 0:02:41]} 14. Bh5 {[%clk 0:02:27]}  Bc5 {[%clk 0:02:39]} 15. Ne3 {[%clk 0:02:22]}  Nf6 {[%clk 0:02:11]} 16. g4 {[%clk 0:02:13]}  Nxh5 {[%clk 0:02:03]} 17. gxh5 {[%clk 0:02:12]}  Qf7 {[%clk 0:01:59]} 18. Qxf7+ {[%clk 0:02:08]}  Kxf7 {[%clk 0:02:00]} 19. Nxe5+ {[%clk 0:02:09]}  Kf6 {[%clk 0:01:59]} 20. Nd3 {[%clk 0:02:05]}  Bxe3 {[%clk 0:01:40]} 21. fxe3 {[%clk 0:02:05]}  Bg4 {[%clk 0:01:40]} 22. Rf1+ {[%clk 0:01:56]}  Ke7 {[%clk 0:01:39]} 23. Rf4 {[%clk 0:01:46]}  Bxh5 {[%clk 0:01:37]} 24. Re4+ {[%clk 0:01:24]}  Kd6 {[%clk 0:01:37]} 25. Nf4 {[%clk 0:01:23]}  Bf3 {[%clk 0:01:32]} 26. Re6+ {[%clk 0:01:22]}  Kd7 {[%clk 0:01:30]} 27. Kf2 {[%clk 0:01:19]}  Bg4 {[%clk 0:01:30]} 28. Rxh6 {[%clk 0:01:09]}  Rad8 {[%clk 0:01:30]} 29. Rg1 {[%clk 0:01:06]}  Bf5 {[%clk 0:01:25]} 30. Rg7+ {[%clk 0:01:05]}  Kc8 {[%clk 0:01:26]} 31. Rf6 {[%clk 0:01:02]}  Rhf8 {[%clk 0:01:18]} 32. Rxf8 {[%clk 0:00:54]}  Rxf8 {[%clk 0:01:19]} 33. Kf3 {[%clk 0:00:52]}  Bc2 {[%clk 0:01:19]} 34. e4 {[%clk 0:00:50]}  h5 {[%clk 0:01:15]} 35. e5 {[%clk 0:00:48]}  Bxa4 {[%clk 0:01:15]} 36. e6 {[%clk 0:00:47]}  Bb3 {[%clk 0:01:14]} 37. e7 {[%clk 0:00:42]}  Re8 {[%clk 0:01:12]} 38. Nxh5 {[%clk 0:00:42]}  Bd1+ {[%clk 0:01:08]} 39. Kf4 {[%clk 0:00:42]}  Bxh5 {[%clk 0:01:09]} 40. Kg5 {[%clk 0:00:43]}  Rh8 {[%clk 0:01:04]} 41. Kf6 {[%clk 0:00:23]}  Be8 {[%clk 0:01:03]} 42. Rg2 {[%clk 0:00:19]}  Rh6+ {[%clk 0:00:48]} 43. Kg7 {[%clk 0:00:19]}  Rd6 {[%clk 0:00:48]} 44. Kf8 {[%clk 0:00:19]}  Kd7 {[%clk 0:00:48]} 45. h4 {[%clk 0:00:15]}  Rf6+ {[%clk 0:00:48]} 46. Kg7 {[%clk 0:00:13]}  Kxe7 {[%clk 0:00:48]} 47. Rg5 {[%clk 0:00:06]}  b5 {[%clk 0:00:41]} 48. h5 {[%clk 0:00:07]}  Bxh5 {[%clk 0:00:39]} 49. Rxh5 {[%clk 0:00:06]}  Rf2 {[%clk 0:00:39]} 50. c4 {[%clk 0:00:03]}  Rxb2 {[%clk 0:00:38]} 51. Rh6 {[%clk 0:00:02]}  Rg2+ {[%clk 0:00:31]} 52. Kh7 {[%clk 0:00:01]}  b4 {[%clk 0:00:29]} 53. Rxc6 {[%clk 0:00:00]}  b3 {[%clk 0:00:29]} 0-1


[Site "https://www.chess.com"]

[Event "Titled Tuesday Blitz August 08 Early 2023"]
[White "Salman, Pavel"]
[Black "Atakhan, Abtin"]
[WhiteFideId "24153753"]
[BlackFideId "22502203"]
[WhiteElo "2548"]
[BlackElo "2795"]
[Result "0-1"]
[Round "8"]
[TimeControl "180+1"]
[Date "2023.08.08"]
[WhiteClock "0:00:07"]
[BlackClock "0:00:49"]
[Board "65"]

1. d4 {[%clk 0:03:00]}  Nf6 {[%clk 0:03:00]} 2. Nc3 {[%clk 0:03:00]}  d5 {[%clk 0:03:00]} 3. Bf4 {[%clk 0:03:01]}  g6 {[%clk 0:02:58]} 4. Nb5 {[%clk 0:03:00]}  Na6 {[%clk 0:02:59]} 5. e3 {[%clk 0:03:00]}  Bg7 {[%clk 0:02:58]} 6. Nf3 {[%clk 0:02:58]}  O-O {[%clk 0:02:59]} 7. Ne5 {[%clk 0:02:58]}  Ne4 {[%clk 0:02:56]} 8. f3 {[%clk 0:02:57]}  Nf6 {[%clk 0:02:51]} 9. g4 {[%clk 0:02:54]}  c6 {[%clk 0:02:50]} 10. Nc3 {[%clk 0:02:53]}  Qb6 {[%clk 0:02:47]} 11. Na4 {[%clk 0:02:50]}  Qa5+ {[%clk 0:02:41]} 12. c3 {[%clk 0:02:49]}  b5 {[%clk 0:02:41]} 13. Nxc6 {[%clk 0:02:15]}  Qxa4 {[%clk 0:02:41]} 14. b3 {[%clk 0:02:03]}  Qa3 {[%clk 0:02:37]} 15. Bxb5 {[%clk 0:02:00]}  Bd7 {[%clk 0:02:30]} 16. Qc1 {[%clk 0:01:09]}  Qxc1+ {[%clk 0:02:24]} 17. Rxc1 {[%clk 0:01:10]}  Kh8 {[%clk 0:02:07]} 18. a4 {[%clk 0:01:00]}  Rfe8 {[%clk 0:01:42]} 19. h4 {[%clk 0:01:00]}  h5 {[%clk 0:01:30]} 20. g5 {[%clk 0:00:59]}  Ng8 {[%clk 0:01:30]} 21. Ne5 {[%clk 0:00:51]}  Bxb5 {[%clk 0:01:26]} 22. Nxf7+ {[%clk 0:00:45]}  Kh7 {[%clk 0:01:26]} 23. axb5 {[%clk 0:00:46]}  Nb8 {[%clk 0:01:24]} 24. Ra1 {[%clk 0:00:37]}  Nd7 {[%clk 0:01:23]} 25. Kd2 {[%clk 0:00:31]}  Rf8 {[%clk 0:01:23]} 26. Ne5 {[%clk 0:00:29]}  Bxe5 {[%clk 0:01:23]} 27. dxe5 {[%clk 0:00:27]}  e6 {[%clk 0:01:23]} 28. b4 {[%clk 0:00:20]}  Ne7 {[%clk 0:01:21]} 29. Ra6 {[%clk 0:00:20]}  Nb6 {[%clk 0:01:21]} 30. Rha1 {[%clk 0:00:19]}  Nec8 {[%clk 0:01:18]} 31. Ke2 {[%clk 0:00:17]}  Rf7 {[%clk 0:01:15]} 32. Bg3 {[%clk 0:00:16]}  Rb8 {[%clk 0:01:15]} 33. Bf2 {[%clk 0:00:12]}  Rbb7 {[%clk 0:01:14]} 34. e4 {[%clk 0:00:12]}  dxe4 {[%clk 0:01:15]} 35. fxe4 {[%clk 0:00:13]}  Rbc7 {[%clk 0:01:10]} 36. Bc5 {[%clk 0:00:12]}  Nd7 {[%clk 0:01:07]} 37. Bd4 {[%clk 0:00:09]}  Ndb6 {[%clk 0:01:01]} 38. Ke3 {[%clk 0:00:10]}  Kg8 {[%clk 0:00:55]} 39. R1a2 {[%clk 0:00:09]}  Kf8 {[%clk 0:00:55]} 40. Ra1 {[%clk 0:00:08]}  Ke8 {[%clk 0:00:55]} 41. Bc5 {[%clk 0:00:08]}  Nc4+ {[%clk 0:00:53]} 42. Kd4 {[%clk 0:00:09]}  N8b6 {[%clk 0:00:52]} 43. Bxb6 {[%clk 0:00:07]}  Rfd7# {[%clk 0:00:49]} 0-1


[Site "https://www.chess.com"]

[Event "Titled Tuesday Blitz August 08 Early 2023"]
[White "Burmakin, Vladimir"]
[Black "Tanenbaum, Zachary"]
[WhiteFideId "4105109"]
[BlackFideId "2060850"]
[WhiteElo "2538"]
[BlackElo "2741"]
[Result "0-1"]
[Round "8"]
[TimeControl "180+1"]
[Date "2023.08.08"]
[WhiteClock "0:01:12"]
[BlackClock "0:00:49"]
[Board "67"]

1. c4 {[%clk 0:03:00]}  e5 {[%clk 0:03:00]} 2. g3 {[%clk 0:03:00]}  Nc6 {[%clk 0:03:00]} 3. Bg2 {[%clk 0:03:00]}  Nf6 {[%clk 0:03:01]} 4. Nc3 {[%clk 0:02:59]}  Bc5 {[%clk 0:03:02]} 5. e3 {[%clk 0:02:58]}  d6 {[%clk 0:03:03]} 6. Nge2 {[%clk 0:02:58]}  O-O {[%clk 0:03:03]} 7. Rb1 {[%clk 0:02:57]}  Ne7 {[%clk 0:02:54]} 8. b4 {[%clk 0:02:56]}  Bb6 {[%clk 0:02:54]} 9. d4 {[%clk 0:02:54]}  exd4 {[%clk 0:02:46]} 10. exd4 {[%clk 0:02:53]}  Bf5 {[%clk 0:02:46]} 11. Rb3 {[%clk 0:02:44]}  c6 {[%clk 0:02:45]} 12. O-O {[%clk 0:02:40]}  Ng6 {[%clk 0:02:41]} 13. c5 {[%clk 0:02:36]}  Bc7 {[%clk 0:02:40]} 14. d5 {[%clk 0:02:33]}  cxd5 {[%clk 0:01:35]} 15. Nxd5 {[%clk 0:02:29]}  Nxd5 {[%clk 0:01:35]} 16. Bxd5 {[%clk 0:02:28]}  Bh3 {[%clk 0:01:35]} 17. Re1 {[%clk 0:02:17]}  dxc5 {[%clk 0:01:35]} 18. bxc5 {[%clk 0:02:02]}  Ba5 {[%clk 0:01:35]} 19. Bxb7 {[%clk 0:01:45]}  Bxe1 {[%clk 0:01:32]} 20. Qxe1 {[%clk 0:01:43]}  Rb8 {[%clk 0:01:32]} 21. Bh1 {[%clk 0:01:38]}  Rxb3 {[%clk 0:01:27]} 22. axb3 {[%clk 0:01:37]}  Qd3 {[%clk 0:01:22]} 23. b4 {[%clk 0:01:31]}  Re8 {[%clk 0:01:21]} 24. Be3 {[%clk 0:01:26]}  Rd8 {[%clk 0:01:01]} 25. Bg2 {[%clk 0:01:25]}  Bxg2 {[%clk 0:01:00]} 26. Kxg2 {[%clk 0:01:24]}  Qe4+ {[%clk 0:00:56]} 27. Kh3 {[%clk 0:01:19]}  Rd5 {[%clk 0:00:50]} 28. g4 {[%clk 0:01:13]}  h5 {[%clk 0:00:50]} 29. g5 {[%clk 0:01:12]}  Qg4# {[%clk 0:00:49]} 0-1


[Site "https://www.chess.com"]

[Event "Titled Tuesday Blitz August 08 Early 2023"]
[White "Prohaszka, Peter"]
[Black "Baghdasaryan, Vahe"]
[WhiteFideId "726265"]
[BlackFideId "13303139"]
[WhiteElo "2721"]
[BlackElo "2531"]
[Result "1-0"]
[Round "8"]
[TimeControl "180+1"]
[Date "2023.08.08"]
[WhiteClock "0:00:35"]
[BlackClock "0:00:00"]
[Board "69"]

1. d4 {[%clk 0:03:00]}  d5 {[%clk 0:02:58]} 2. Nf3 {[%clk 0:02:48]}  Nf6 {[%clk 0:02:57]} 3. c3 {[%clk 0:02:49]}  Bf5 {[%clk 0:02:55]} 4. Qb3 {[%clk 0:02:46]}  b6 {[%clk 0:02:51]} 5. Bf4 {[%clk 0:02:12]}  e6 {[%clk 0:02:48]} 6. e3 {[%clk 0:02:09]}  h6 {[%clk 0:02:46]} 7. Bb5+ {[%clk 0:02:05]}  Nfd7 {[%clk 0:02:25]} 8. Ne5 {[%clk 0:02:01]}  a6 {[%clk 0:02:20]} 9. Qa4 {[%clk 0:01:56]}  f6 {[%clk 0:01:53]} 10. Nc6 {[%clk 0:01:09]}  Nxc6 {[%clk 0:01:49]} 11. Bxc6 {[%clk 0:01:10]}  Ra7 {[%clk 0:01:48]} 12. Nd2 {[%clk 0:01:09]}  Be7 {[%clk 0:01:44]} 13. c4 {[%clk 0:00:51]}  dxc4 {[%clk 0:01:10]} 14. Qxc4 {[%clk 0:00:52]}  O-O {[%clk 0:01:04]} 15. e4 {[%clk 0:00:51]}  b5 {[%clk 0:00:26]} 16. Qb3 {[%clk 0:00:51]}  Kh8 {[%clk 0:00:17]} 17. exf5 {[%clk 0:00:50]}  exf5 {[%clk 0:00:18]} 18. d5 {[%clk 0:00:34]}  g5 {[%clk 0:00:17]} 19. Be3 {[%clk 0:00:35]}  Nc5 {[%clk 0:00:16]} 20. Qc2 {[%clk 0:00:35]}  Qd6 {[%clk 0:00:14]} 21. b4 {[%clk 0:00:35]}  Ne4 {[%clk 0:00:07]} 22. Nxe4 {[%clk 0:00:35]}  Qxb4+ {[%clk 0:00:06]} 23. Nd2 {[%clk 0:00:35]}  f4 {[%clk 0:00:00]} 24. Bxa7 {[%clk 0:00:35]} 1-0


[Site "https://www.chess.com"]

[Event "Titled Tuesday Blitz August 08 Early 2023"]
[White "Djordjevic, Vuk"]
[Black "Eynullayev, Atilla"]
[WhiteFideId "902098"]
[BlackFideId "13413570"]
[WhiteElo "2707"]
[BlackElo "2530"]
[Result "0-1"]
[Round "8"]
[TimeControl "180+1"]
[Date "2023.08.08"]
[WhiteClock "0:00:02"]
[BlackClock "0:00:11"]
[Board "70"]

1. d4 {[%clk 0:03:00]}  Nf6 {[%clk 0:02:58]} 2. Bg5 {[%clk 0:03:01]}  d5 {[%clk 0:02:57]} 3. Bxf6 {[%clk 0:03:00]}  gxf6 {[%clk 0:02:57]} 4. e3 {[%clk 0:03:00]}  c5 {[%clk 0:02:58]} 5. dxc5 {[%clk 0:03:00]}  Nc6 {[%clk 0:02:58]} 6. Nf3 {[%clk 0:02:58]}  Qa5+ {[%clk 0:02:52]} 7. Nbd2 {[%clk 0:02:51]}  Qxc5 {[%clk 0:02:52]} 8. Be2 {[%clk 0:02:46]}  Rg8 {[%clk 0:02:52]} 9. O-O {[%clk 0:02:46]}  Bh3 {[%clk 0:02:50]} 10. Ne1 {[%clk 0:02:45]}  O-O-O {[%clk 0:02:43]} 11. Kh1 {[%clk 0:02:04]}  Bf5 {[%clk 0:02:43]} 12. Bd3 {[%clk 0:02:03]}  Bg6 {[%clk 0:02:37]} 13. Bxg6 {[%clk 0:02:00]}  hxg6 {[%clk 0:02:36]} 14. c3 {[%clk 0:01:56]}  e6 {[%clk 0:02:31]} 15. b4 {[%clk 0:01:48]}  Qd6 {[%clk 0:02:26]} 16. a4 {[%clk 0:01:47]}  Rh8 {[%clk 0:02:26]} 17. g3 {[%clk 0:01:39]}  g5 {[%clk 0:02:15]} 18. a5 {[%clk 0:01:35]}  Ne5 {[%clk 0:02:13]} 19. Kg2 {[%clk 0:01:14]}  f5 {[%clk 0:02:11]} 20. Nef3 {[%clk 0:01:01]}  f6 {[%clk 0:01:35]} 21. Nd4 {[%clk 0:00:52]}  Rd7 {[%clk 0:01:27]} 22. Qe2 {[%clk 0:00:45]}  Rdh7 {[%clk 0:01:27]} 23. Rh1 {[%clk 0:00:43]}  Kb8 {[%clk 0:01:16]} 24. N2b3 {[%clk 0:00:22]}  f4 {[%clk 0:01:05]} 25. Nc5 {[%clk 0:00:22]}  Re7 {[%clk 0:00:28]} 26. Rad1 {[%clk 0:00:06]}  Bg7 {[%clk 0:00:20]} 27. exf4 {[%clk 0:00:05]}  gxf4 {[%clk 0:00:20]} 28. Kf1 {[%clk 0:00:04]}  fxg3 {[%clk 0:00:19]} 29. fxg3 {[%clk 0:00:04]}  f5 {[%clk 0:00:19]} 30. Kg2 {[%clk 0:00:02]}  Rhe8 {[%clk 0:00:20]} 31. h3 {[%clk 0:00:02]}  Nc4 {[%clk 0:00:18]} 32. Rhe1 {[%clk 0:00:02]}  Bxd4 {[%clk 0:00:12]} 33. Rxd4 {[%clk 0:00:01]}  Rg8 {[%clk 0:00:11]} 34. Qxc4 {[%clk 0:00:01]}  Qxg3+ {[%clk 0:00:11]} 35. Kf1 {[%clk 0:00:02]}  Qg2# {[%clk 0:00:11]} 0-1


[Site "https://www.chess.com"]

[Event "Titled Tuesday Blitz August 08 Early 2023"]
[White "Domingo Nunez, Alejandro"]
[Black "KarolKacprzak"]
[WhiteFideId "22245561"]
[WhiteElo "2527"]
[BlackElo "2681"]
[Result "0-1"]
[Round "8"]
[TimeControl "180+1"]
[Date "2023.08.08"]
[WhiteClock "0:00:00"]
[BlackClock "0:00:31"]
[Board "71"]

1. Nf3 {[%clk 0:03:00]}  d5 {[%clk 0:02:56]} 2. g3 {[%clk 0:03:00]}  Bg4 {[%clk 0:02:56]} 3. Bg2 {[%clk 0:03:00]}  Nd7 {[%clk 0:02:57]} 4. d4 {[%clk 0:02:59]}  Ngf6 {[%clk 0:02:56]} 5. O-O {[%clk 0:02:59]}  e6 {[%clk 0:02:56]} 6. c4 {[%clk 0:02:59]}  c6 {[%clk 0:02:54]} 7. cxd5 {[%clk 0:02:58]}  exd5 {[%clk 0:02:55]} 8. h3 {[%clk 0:02:58]}  Bxf3 {[%clk 0:02:54]} 9. exf3 {[%clk 0:02:57]}  Be7 {[%clk 0:02:54]} 10. f4 {[%clk 0:02:57]}  O-O {[%clk 0:02:55]} 11. Nc3 {[%clk 0:02:56]}  Re8 {[%clk 0:02:54]} 12. h4 {[%clk 0:02:56]}  Qb6 {[%clk 0:02:49]} 13. f5 {[%clk 0:02:48]}  Bb4 {[%clk 0:02:46]} 14. Qd3 {[%clk 0:02:46]}  Bxc3 {[%clk 0:02:37]} 15. bxc3 {[%clk 0:02:46]}  Ne4 {[%clk 0:02:32]} 16. Bf4 {[%clk 0:02:15]}  Qa5 {[%clk 0:02:17]} 17. c4 {[%clk 0:02:11]}  Qa6 {[%clk 0:02:15]} 18. Rac1 {[%clk 0:01:18]}  Nb6 {[%clk 0:02:14]} 19. Rfe1 {[%clk 0:01:00]}  Nf6 {[%clk 0:01:46]} 20. Bg5 {[%clk 0:00:59]}  dxc4 {[%clk 0:01:44]} 21. Qc2 {[%clk 0:00:42]}  Nbd5 {[%clk 0:01:34]} 22. Re5 {[%clk 0:00:33]}  b5 {[%clk 0:01:11]} 23. Rce1 {[%clk 0:00:31]}  h6 {[%clk 0:01:03]} 24. Qd1 {[%clk 0:00:08]}  Kf8 {[%clk 0:00:48]} 25. Bf4 {[%clk 0:00:02]}  Qa3 {[%clk 0:00:42]} 26. Bxd5 {[%clk 0:00:01]}  cxd5 {[%clk 0:00:37]} 27. Bc1 {[%clk 0:00:02]}  Qa6 {[%clk 0:00:34]} 28. g4 {[%clk 0:00:03]}  Ne4 {[%clk 0:00:32]} 29. f3 {[%clk 0:00:03]}  Rxe5 {[%clk 0:00:31]} 30. dxe5 {[%clk 0:00:03]}  Qb6+ {[%clk 0:00:32]} 31. Kg2 {[%clk 0:00:00]}  Qf2+ {[%clk 0:00:31]} 0-1


[Site "https://www.chess.com"]

[Event "Titled Tuesday Blitz August 08 Early 2023"]
[White "Martin Barcelo, Carles"]
[Black "Hoang, Thi Bao Tram"]
[WhiteFideId "24561444"]
[BlackFideId "12401102"]
[WhiteElo "2522"]
[BlackElo "2657"]
[Result "0-1"]
[Round "8"]
[TimeControl "180+1"]
[Date "2023.08.08"]
[WhiteClock "0:00:00"]
[BlackClock "0:00:32"]
[Board "74"]

1. e4 {[%clk 0:03:00]}  c6 {[%clk 0:02:14]} 2. Nf3 {[%clk 0:02:59]}  d5 {[%clk 0:02:14]} 3. Nc3 {[%clk 0:03:00]}  Bg4 {[%clk 0:02:13]} 4. h3 {[%clk 0:02:58]}  Bxf3 {[%clk 0:02:14]} 5. Qxf3 {[%clk 0:02:58]}  e6 {[%clk 0:02:14]} 6. Be2 {[%clk 0:02:57]}  Nf6 {[%clk 0:02:13]} 7. O-O {[%clk 0:02:52]}  Be7 {[%clk 0:02:13]} 8. exd5 {[%clk 0:02:43]}  cxd5 {[%clk 0:02:11]} 9. d4 {[%clk 0:02:43]}  O-O {[%clk 0:02:11]} 10. Bd3 {[%clk 0:02:43]}  Nc6 {[%clk 0:02:11]} 11. Ne2 {[%clk 0:02:43]}  Nb4 {[%clk 0:02:11]} 12. Bf4 {[%clk 0:02:39]}  Qb6 {[%clk 0:02:07]} 13. c3 {[%clk 0:02:35]}  Nxd3 {[%clk 0:02:06]} 14. Qxd3 {[%clk 0:02:36]}  Ne4 {[%clk 0:02:03]} 15. Rab1 {[%clk 0:02:30]}  Rac8 {[%clk 0:02:02]} 16. Qd1 {[%clk 0:02:23]}  Bd6 {[%clk 0:02:00]} 17. Bxd6 {[%clk 0:02:17]}  Qxd6 {[%clk 0:02:01]} 18. Nc1 {[%clk 0:02:14]}  e5 {[%clk 0:01:36]} 19. dxe5 {[%clk 0:02:11]}  Qxe5 {[%clk 0:01:37]} 20. Nb3 {[%clk 0:02:05]}  Rc6 {[%clk 0:01:35]} 21. Qd4 {[%clk 0:02:04]}  Qg5 {[%clk 0:01:34]} 22. Rbd1 {[%clk 0:02:00]}  Rg6 {[%clk 0:01:29]} 23. g4 {[%clk 0:01:45]}  Qh4 {[%clk 0:01:29]} 24. Rd3 {[%clk 0:01:26]}  h5 {[%clk 0:01:25]} 25. g5 {[%clk 0:00:39]}  Rxg5+ {[%clk 0:01:21]} 26. Kh1 {[%clk 0:00:38]}  Rg6 {[%clk 0:01:14]} 27. Qe3 {[%clk 0:00:28]}  Re8 {[%clk 0:01:06]} 28. Kh2 {[%clk 0:00:17]}  Re5 {[%clk 0:01:04]} 29. Rg1 {[%clk 0:00:14]}  Rf6 {[%clk 0:00:54]} 30. Rg2 {[%clk 0:00:04]}  Ref5 {[%clk 0:00:51]} 31. f3 {[%clk 0:00:02]}  Ng5 {[%clk 0:00:47]} 32. f4 {[%clk 0:00:01]}  Rxf4 {[%clk 0:00:45]} 33. Qg3 {[%clk 0:00:02]}  Qxg3+ {[%clk 0:00:40]} 34. Rdxg3 {[%clk 0:00:03]}  Ne6 {[%clk 0:00:41]} 35. Nd4 {[%clk 0:00:03]}  g6 {[%clk 0:00:40]} 36. Nxe6 {[%clk 0:00:02]}  Rxe6 {[%clk 0:00:41]} 37. Rd2 {[%clk 0:00:02]}  Re5 {[%clk 0:00:40]} 38. Rgd3 {[%clk 0:00:02]}  Rff5 {[%clk 0:00:40]} 39. Kg3 {[%clk 0:00:03]}  Kg7 {[%clk 0:00:40]} 40. h4 {[%clk 0:00:03]}  Kh6 {[%clk 0:00:40]} 41. b3 {[%clk 0:00:03]}  Kg7 {[%clk 0:00:40]} 42. Kh3 {[%clk 0:00:03]}  Kf6 {[%clk 0:00:40]} 43. Kg3 {[%clk 0:00:03]}  Ke6 {[%clk 0:00:40]} 44. Rd4 {[%clk 0:00:03]}  Re4 {[%clk 0:00:39]} 45. R4d3 {[%clk 0:00:01]}  Rg4+ {[%clk 0:00:36]} 46. Kh3 {[%clk 0:00:02]}  Re5 {[%clk 0:00:37]} 47. c4 {[%clk 0:00:02]}  dxc4 {[%clk 0:00:35]} 48. Rd6+ {[%clk 0:00:03]}  Kf5 {[%clk 0:00:31]} 49. Rf2+ {[%clk 0:00:02]}  Rf4 {[%clk 0:00:31]} 50. Rxf4+ {[%clk 0:00:00]}  Kxf4 {[%clk 0:00:32]} 0-1


[Site "https://www.chess.com"]

[Event "Titled Tuesday Blitz August 08 Early 2023"]
[White "Dehtiarov, Roman"]
[Black "Ansh M Shah"]
[WhiteFideId "14186640"]
[BlackFideId "25033379"]
[WhiteElo "2656"]
[BlackElo "2522"]
[Result "1-0"]
[Round "8"]
[TimeControl "180+1"]
[Date "2023.08.08"]
[WhiteClock "0:00:23"]
[BlackClock "0:00:00"]
[Board "75"]

1. c4 {[%clk 0:02:54]}  Nf6 {[%clk 0:02:58]} 2. Nc3 {[%clk 0:02:51]}  e6 {[%clk 0:02:58]} 3. e4 {[%clk 0:02:50]}  d6 {[%clk 0:02:52]} 4. d4 {[%clk 0:02:50]}  g6 {[%clk 0:02:52]} 5. Be3 {[%clk 0:02:48]}  Bg7 {[%clk 0:02:52]} 6. Nf3 {[%clk 0:02:42]}  O-O {[%clk 0:02:53]} 7. h3 {[%clk 0:02:41]}  b6 {[%clk 0:02:53]} 8. Bd3 {[%clk 0:02:40]}  Bb7 {[%clk 0:02:53]} 9. O-O {[%clk 0:02:38]}  c5 {[%clk 0:02:53]} 10. Qd2 {[%clk 0:02:36]}  Re8 {[%clk 0:02:50]} 11. Rad1 {[%clk 0:02:35]}  Nc6 {[%clk 0:02:44]} 12. dxc5 {[%clk 0:02:17]}  bxc5 {[%clk 0:02:19]} 13. Bc2 {[%clk 0:02:14]}  e5 {[%clk 0:02:14]} 14. Qxd6 {[%clk 0:02:10]}  Nd4 {[%clk 0:02:14]} 15. Qxd8 {[%clk 0:01:50]}  Raxd8 {[%clk 0:02:14]} 16. Ba4 {[%clk 0:01:48]}  Re6 {[%clk 0:02:04]} 17. Bg5 {[%clk 0:01:45]}  h6 {[%clk 0:01:59]} 18. Bxf6 {[%clk 0:01:39]}  Bxf6 {[%clk 0:02:00]} 19. Nd5 {[%clk 0:01:35]}  Bg7 {[%clk 0:01:51]} 20. Nxd4 {[%clk 0:01:35]}  exd4 {[%clk 0:01:44]} 21. f3 {[%clk 0:01:34]}  g5 {[%clk 0:01:29]} 22. Ne3 {[%clk 0:01:10]}  Be5 {[%clk 0:01:16]} 23. Nf5 {[%clk 0:01:05]}  Kh7 {[%clk 0:01:05]} 24. Rd3 {[%clk 0:00:55]}  Ba6 {[%clk 0:00:57]} 25. b3 {[%clk 0:00:55]}  Bc8 {[%clk 0:00:52]} 26. Rfd1 {[%clk 0:00:44]}  a5 {[%clk 0:00:44]} 27. Bb5 {[%clk 0:00:42]}  Kg6 {[%clk 0:00:22]} 28. Ne3 {[%clk 0:00:41]}  Ba6 {[%clk 0:00:18]} 29. Nd5 {[%clk 0:00:37]}  Rb8 {[%clk 0:00:13]} 30. a4 {[%clk 0:00:37]}  Bb7 {[%clk 0:00:12]} 31. Rc1 {[%clk 0:00:36]}  Rd8 {[%clk 0:00:10]} 32. Rc2 {[%clk 0:00:35]}  Rb8 {[%clk 0:00:10]} 33. Bd7 {[%clk 0:00:35]}  Rd6 {[%clk 0:00:09]} 34. Bf5+ {[%clk 0:00:28]}  Kg7 {[%clk 0:00:08]} 35. Kf2 {[%clk 0:00:27]}  Bc8 {[%clk 0:00:07]} 36. Bxc8 {[%clk 0:00:26]}  Rxc8 {[%clk 0:00:07]} 37. g3 {[%clk 0:00:23]}  Rb8 {[%clk 0:00:06]} 38. f4 {[%clk 0:00:23]}  gxf4 {[%clk 0:00:04]} 39. gxf4 {[%clk 0:00:24]}  Bxf4 {[%clk 0:00:03]} 40. Nxf4 {[%clk 0:00:23]}  Rf6 {[%clk 0:00:03]} 41. Kf3 {[%clk 0:00:24]}  Kh7 {[%clk 0:00:04]} 42. e5 {[%clk 0:00:24]}  Rf5 {[%clk 0:00:03]} 43. Ke4 {[%clk 0:00:24]}  Rg5 {[%clk 0:00:00]} 44. Rg2 {[%clk 0:00:23]} 1-0


[Site "https://www.chess.com"]